bitfinex/quotes_ETHUSD_20250525
["timestamp","ask_amount","ask_price","bid_price","bid_amount"]
[1748142597007,0.7541,2507.7,2506.5,0.8268]
[1748142597212,0.7541,2507.7,2506.7,8.0]
[1748142597529,0.04985049,2507.6,2506.9,8.0]
[1748142597718,0.7541,2507.5,2507.1,8.0]
[1748142599096,0.7541,2507.5,2507.2,11.933]
[1748142599097,0.7541,2507.4,2507.2,11.933]
[1748142600309,10.16600671,2507.6,2507.2,11.933]
[1748142600511,0.7981,2507.7,2507.2,11.933]
[1748142600719,0.7981,2507.7,2507.3,8.0]
[1748142601121,0.37174391,2508.0,2507.4,0.7712]
[1748142602099,10.16600671,2508.1,2507.4,0.7712]
[1748142603334,0.7981,2508.0,2507.4,0.7712]
[1748142603561,0.7981,2508.0,2507.5,11.934]
[1748142603838,1.89451067,2508.0,2507.5,11.934]
[1748142604502,0.7981,2508.0,2507.5,11.934]
[1748142604835,10.16600671,2508.1,2507.5,11.934]
[1748142605540,10.16600671,2508.1,2507.6,0.758]
[1748142605737,0.8214,2508.0,2507.5,11.934]
[1748142606049,10.16600671,2508.1,2507.5,11.934]
[1748142606219,11.26474738,2508.1,2507.5,11.934]
[1748142606619,11.26474738,2508.1,2507.6,8.0]
[1748142607033,11.26474738,2508.1,2507.7,0.758]
[1748142607542,11.26474738,2508.1,2507.8,39.454]
[1748142607713,11.26474738,2508.1,2507.8,15.589]
[1748142608115,11.26474738,2508.1,2507.7,0.758]
[1748142608948,10.16600671,2508.1,2507.7,0.758]
[1748142609336,0.8214,2508.5,2507.7,0.758]
[1748142609516,10.98810671,2508.7,2507.7,0.758]
[1748142609915,10.16600671,2508.7,2507.7,0.758]
[1748142610659,0.02024732,2508.9,2507.9,0.816]
[1748142614728,0.7516,2508.8,2507.9,0.816]
[1748142614938,0.7516,2508.6,2508.0,11.931]
[1748142615258,10.21584279,2508.5,2508.0,11.931]
[1748142615564,9.09674428,2508.4,2508.0,11.931]
[1748142615768,9.09674428,2508.4,2508.1,11.931]
[1748142615960,0.7516,2508.3,2508.1,11.931]
[1748142617535,0.7516,2508.3,2508.2,39.449]
[1748142617964,0.7516,2508.3,2508.2,15.587]
[1748142618633,0.37124133,2508.6,2508.1,11.931]
[1748142619027,0.7516,2508.7,2508.1,11.931]
[1748142621236,0.80764732,2508.9,2508.2,0.7635]
[1748142621833,0.37119329,2508.8,2508.2,0.7635]
[1748142622456,0.37119329,2508.8,2508.1,11.931]
[1748142622861,0.37119329,2508.7,2508.1,11.931]
[1748142624070,0.80764732,2508.9,2508.1,11.931]
[1748142624670,1.68841205,2508.9,2508.1,11.931]
[1748142625243,1.68841205,2508.9,2508.2,0.8009]
[1748142625478,0.80764732,2508.9,2508.2,0.8009]
[1748142627557,0.80764732,2508.9,2508.3,39.447]
[1748142627745,0.80764732,2508.9,2508.3,15.586]
[1748142629376,0.37162723,2508.8,2508.3,15.586]
[1748142629839,0.37162723,2508.8,2508.2,0.8009]
[1748142630045,0.0498315,2508.7,2508.3,11.93]
[1748142630240,0.85747942,2508.9,2508.3,11.93]
[1748142630474,0.80764732,2508.9,2508.4,11.93]
[1748142631348,10.16600671,2508.8,2508.5,0.8009]
[1748142631801,0.02024732,2508.9,2508.5,8.8009]
[1748142632642,0.02024732,2508.9,2508.6,0.8009]
[1748142637471,0.02024732,2508.9,2508.8,8.0]
[1748142639888,0.02024732,2508.9,2508.4,0.8201]
[1748142640088,0.02024732,2508.9,2508.8,11.928]
[1748142643087,0.02024732,2508.9,2508.1,0.8201]
[1748142643088,0.7865,2508.8,2508.1,0.8201]
[1748142643389,0.7865,2508.8,2508.3,8.0]
[1748142644295,0.7865,2508.8,2508.2,11.928]
[1748142644488,0.7865,2508.8,2508.1,0.8201]
[1748142644697,0.7865,2508.8,2508.2,11.928]
[1748142644868,0.7865,2508.8,2508.3,11.928]
[1748142646312,0.7865,2508.8,2507.7,0.7656]
[1748142646517,0.22052,2508.7,2507.8,11.928]
[1748142646892,0.7865,2508.8,2507.8,11.928]
[1748142647560,0.7865,2508.8,2507.9,39.422]
[1748142647857,0.37153389,2508.7,2507.9,39.422]
[1748142648658,0.37153389,2508.6,2507.9,15.565]
[1748142649904,0.37153389,2508.5,2507.9,15.565]
[1748142650802,0.7865,2508.8,2507.9,15.565]
[1748142651001,0.7865,2508.8,2507.9,8.0]
[1748142651202,0.83633582,2508.8,2507.9,8.0]
[1748142651615,0.37151738,2508.7,2507.9,8.0]
[1748142652112,0.37151738,2508.7,2507.7,0.7656]
[1748142652424,0.766,2508.6,2508.0,11.929]
[1748142652885,0.37151738,2508.5,2508.0,11.929]
[1748142653626,0.766,2508.6,2508.0,11.929]
[1748142656991,0.766,2508.6,2508.1,11.93]
[1748142657221,0.37139297,2508.5,2508.2,11.93]
[1748142657523,0.37139297,2508.5,2508.3,15.567]
[1748142657829,0.37139297,2508.5,2507.3,0.8199]
[1748142657830,0.7776,2508.4,2507.3,0.8199]
[1748142658132,0.7776,2508.4,2507.5,8.0]
[1748142658335,1.91408382,2508.4,2507.5,8.0]
[1748142658692,0.7776,2508.4,2507.6,0.8199]
[1748142658893,0.7776,2508.4,2507.6,1.3212981]
[1748142659116,0.7776,2508.4,2507.6,0.8199]
[1748142662110,0.37127031,2508.7,2507.6,0.8199]
[1748142662311,1.17257031,2508.7,2507.7,0.5013981]
[1748142662626,0.8013,2508.7,2507.6,0.7863]
[1748142667242,0.8013,2508.7,2507.7,11.931]
[1748142667447,0.8013,2508.7,2507.8,6.681]
[1748142667606,0.37175829,2508.6,2507.8,39.407]
[1748142668542,0.8013,2508.7,2507.8,39.407]
[1748142670230,0.37212507,2508.6,2507.8,39.407]
[1748142670422,0.37212507,2508.6,2507.8,8.0]
[1748142670729,0.37212507,2508.6,2507.9,0.7893]
[1748142671956,0.8013,2508.7,2507.9,0.7893]
[1748142672307,0.79314732,2508.9,2507.9,0.7893]
[1748142672754,0.02024732,2508.9,2508.1,0.7893]
[1748142677656,0.02024732,2508.9,2508.3,0.8123]
[1748142678125,0.80044732,2508.9,2508.3,0.8123]
[1748142680718,0.80044732,2508.9,2508.5,8.0]
[1748142681953,0.80044732,2508.9,2508.6,11.929]
[1748142682154,0.80044732,2508.9,2508.1,0.7944]
[1748142682386,0.80044732,2508.9,2508.3,8.0]
[1748142682780,0.80044732,2508.9,2508.1,0.7944]
[1748142682972,0.80044732,2508.9,2508.2,11.928]
[1748142683287,0.7639,2508.8,2508.4,8.0]
[1748142685046,0.7639,2508.8,2508.5,11.928]
[1748142685268,0.7639,2508.8,2508.6,8.0]
[1748142686394,0.7639,2508.8,2508.7,11.928]
[1748142687548,0.7639,2508.8,2508.7,51.329]
[1748142690592,0.7639,2508.8,2508.7,11.928]
[1748142693598,0.02024732,2508.9,2508.7,11.928]
[1748142696429,0.02024732,2508.9,2508.8,11.928]
[1748142697399,0.84964732,2508.9,2508.8,11.928]
[1748142697614,0.84964732,2508.9,2508.8,51.301]
[1748142699436,0.84964732,2508.9,2508.8,27.445]
[1748142699627,0.84964732,2508.9,2508.8,11.928]
[1748142702039,1.22206593,2508.9,2508.8,11.928]
[1748142703443,1.22206593,2508.9,2508.1,0.7832]
[1748142703644,1.22206593,2508.9,2508.2,11.928]
[1748142703810,0.84964732,2508.9,2508.2,11.928]
[1748142707451,0.84964732,2508.9,2508.4,8.0]
[1748142708254,0.84964732,2508.9,2508.1,0.7832]
[1748142708255,0.84964732,2508.9,2508.6,8.0]
[1748142709416,0.84964732,2508.9,2508.7,11.928]
[1748142717354,0.3725314,2508.8,2508.7,11.928]
[1748142717654,0.3725314,2508.8,2508.7,51.302]
[1748142718625,0.3725314,2508.8,2508.7,27.445]
[1748142722569,0.3725314,2508.8,2508.7,11.928]
[1748142727275,0.3725314,2508.8,2508.1,0.7832]
[1748142727474,0.3725314,2508.8,2508.7,11.928]
[1748142727687,0.3725314,2508.8,2508.7,27.414]
[1748142729886,0.3725314,2508.8,2508.7,11.928]
[1748142730961,0.3725314,2508.8,2508.7,12.7498]
[1748142731364,0.02024732,2508.9,2508.7,12.7498]
[1748142734886,0.02024732,2508.9,2508.7,0.8218]
[1748142735091,0.02024732,2508.9,2508.2,0.7872]
[1748142735494,0.02024732,2508.9,2508.4,8.0]
[1748142735697,0.02024732,2508.9,2508.5,0.7872]
[1748142737291,0.81964732,2508.9,2508.6,11.928]
[1748142737493,0.81964732,2508.9,2508.7,39.341]
[1748142738187,0.02024732,2508.9,2508.7,39.341]
[1748142739703,0.02024732,2508.9,2508.6,11.928]
[1748142746104,0.7994,2508.8,2508.6,11.928]
[1748142746432,0.7994,2508.8,2508.7,11.928]
[1748142747537,0.02024732,2508.9,2508.7,51.271]
[1748142748032,0.02024732,2508.9,2508.7,39.343]
[1748142748329,0.02024732,2508.9,2508.8,11.928]
[1748142748533,0.39275934,2508.9,2508.8,11.928]
[1748142752828,0.39275934,2508.9,2508.3,0.7872]
[1748142753034,0.39275934,2508.9,2508.8,11.928]
[1748142757633,0.39275934,2508.9,2508.8,27.381]
[1748142758193,0.39275934,2508.9,2508.8,11.928]
[1748142758525,0.02024732,2508.9,2508.8,11.928]
[1748142767453,0.02024732,2508.9,2508.8,35.783]
[1748142767659,0.02024732,2508.9,2508.8,51.235]
[1748142768158,0.02024732,2508.9,2508.8,27.38]
[1748142768457,0.02024732,2508.9,2508.8,12.6833]
[1748142770680,0.02024732,2508.9,2508.8,8.7553]
[1748142770866,0.02024732,2508.9,2508.8,20.6823]
[1748142774285,0.02024732,2508.9,2508.8,8.7553]
[1748142774596,0.77124732,2508.9,2508.8,11.927]
[1748142775590,2.16970002,2508.9,2508.0,0.40506207]
[1748142775795,0.96797,2508.8,2508.1,11.927]
[1748142776166,0.37178474,2508.7,2508.1,11.927]
[1748142777065,0.37178474,2508.7,2508.2,11.927]
[1748142777066,0.751,2508.6,2508.2,11.927]
[1748142777270,0.751,2508.6,2508.3,11.927]
[1748142777579,0.751,2508.6,2508.4,15.451]
[1748142777959,0.751,2508.6,2508.5,11.927]
[1748142778160,0.751,2508.6,2507.8,0.815]
[1748142778364,0.751,2508.6,2508.0,8.0]
[1748142779094,1.84270067,2508.6,2508.0,8.0]
[1748142780001,12.00870738,2508.6,2507.9,11.927]
[1748142783070,8.0,2508.5,2507.8,0.815]
[1748142783371,8.0,2508.5,2507.9,11.929]
[1748142787638,8.0,2508.5,2508.0,39.28]
[1748142787840,0.7948,2508.4,2508.0,39.28]
[1748142788344,0.7948,2508.4,2508.1,11.93]
[1748142788639,0.7948,2508.4,2507.6,0.811]
[1748142788838,0.7948,2508.4,2508.2,11.93]
[1748142792045,0.7948,2508.4,2507.6,0.811]
[1748142792246,0.7948,2508.4,2508.3,11.93]
[1748142792409,3.00013781,2508.4,2508.3,11.93]
[1748142793540,0.7579,2508.2,2507.1,0.7984]
[1748142793744,8.0,2508.3,2507.1,0.7984]
[1748142793745,8.7579,2508.0,2507.1,0.7984]
[1748142793991,0.7579,2507.7,2506.7,0.47477265]
[1748142794260,0.7579,2507.5,2507.2,11.931]
[1748142794567,1.36965798,2507.4,2507.3,11.931]
[1748142794861,11.48580671,2507.4,2507.3,11.931]
[1748142795910,10.93580671,2507.4,2507.3,11.931]
[1748142796110,12.02938738,2507.4,2507.3,11.931]
[1748142796626,12.02938738,2507.4,2507.3,11.933]
[1748142797244,12.57938738,2507.4,2506.6,0.8222]
[1748142797434,12.57938738,2507.4,2507.3,11.933]
[1748142797639,12.57938738,2507.4,2507.3,27.357]
[1748142798208,0.7636,2507.3,2506.4,0.8222]
[1748142798529,0.7636,2507.3,2506.5,11.933]
[1748142798530,1.25731874,2507.2,2506.5,11.933]
[1748142798711,0.04986262,2507.1,2506.5,11.933]
[1748142798912,1.25731874,2507.2,2506.6,11.933]
[1748142800369,0.7562,2507.0,2506.1,0.05]
[1748142800504,0.7562,2507.0,2506.7,11.934]
[1748142802849,0.7562,2507.0,2506.8,11.935]
[1748142804350,0.7562,2507.0,2506.1,0.8336]
[1748142804525,0.7562,2507.0,2506.2,11.935]
[1748142804725,2.02528993,2507.0,2506.2,11.935]
[1748142805245,10.16600671,2506.9,2506.2,11.935]
[1748142805411,10.16600671,2506.9,2506.3,8.0]
[1748142806014,0.7562,2507.0,2506.4,0.8123]
[1748142806213,0.764,2507.2,2506.4,0.8123]
[1748142806855,0.764,2507.6,2506.4,0.8123]
[1748142807063,0.764,2507.6,2506.6,0.5]
[1748142807420,0.764,2507.6,2506.7,23.873]
[1748142807623,0.764,2507.6,2506.7,15.429]
[1748142808521,0.764,2507.6,2506.8,0.8123]
[1748142810873,1.3017,2507.8,2506.8,0.8123]
[1748142812074,0.7517,2508.0,2506.8,0.8123]
[1748142814757,1.3725,2508.2,2506.8,0.8123]
[1748142816267,0.8225,2508.2,2506.8,0.8123]
[1748142816462,1.74170709,2508.2,2506.8,0.8123]
[1748142817139,1.79155169,2508.2,2506.8,0.8123]
[1748142817345,1.79155169,2508.2,2507.0,8.0]
[1748142817569,1.79155169,2508.2,2507.2,8.0]
[1748142818285,2.16112257,2508.2,2507.2,8.0]
[1748142818459,0.35595753,2508.1,2507.2,8.0]
[1748142818659,0.0498473,2508.0,2507.0,0.8203]
[1748142818858,0.55,2508.0,2507.2,8.0]
[1748142819589,0.55,2508.0,2507.0,0.8203]
[1748142819887,0.55,2508.0,2507.3,11.935]
[1748142820184,0.91957088,2508.0,2507.4,11.935]
[1748142820949,0.831,2507.9,2507.0,0.8203]
[1748142821274,0.831,2507.9,2507.5,11.935]
[1748142823300,0.831,2507.9,2507.0,0.8203]
[1748142823601,0.88085325,2507.9,2507.6,11.935]
[1748142823897,0.37135415,2507.8,2507.6,11.935]
[1748142824914,0.831,2507.9,2507.6,11.935]
[1748142825678,10.16600671,2507.8,2507.6,11.935]
[1748142825917,1.09970067,2507.7,2507.6,11.935]
[1748142826113,1.09970067,2507.7,2507.0,8.8203]
[1748142826114,1.09970067,2507.7,2507.0,0.8203]
[1748142826313,1.09970067,2507.7,2507.1,11.935]
[1748142826793,1.09970067,2507.7,2507.2,11.935]
[1748142827607,1.09970067,2507.7,2507.3,39.265]
[1748142828999,1.09970067,2507.7,2507.3,15.396]
[1748142829835,1.12657074,2507.6,2507.4,11.935]
[1748142832538,1.12657074,2507.6,2507.5,11.935]
[1748142832931,11.29257745,2507.6,2507.5,11.935]
[1748142833438,0.7704,2507.5,2506.7,0.7745]
[1748142833631,0.7704,2507.5,2506.9,8.0]
[1748142834811,0.7704,2507.5,2507.0,0.802]
[1748142836350,11.29257745,2507.6,2507.0,0.802]
[1748142836843,0.37221725,2507.5,2507.0,0.802]
[1748142837642,0.37221725,2507.5,2507.1,39.266]
[1748142837945,0.7529,2507.9,2507.1,15.397]
[1748142838145,0.7529,2507.9,2507.2,0.802]
[1748142838747,0.37234173,2507.8,2507.2,0.802]
[1748142839825,0.7529,2507.9,2507.2,0.802]
[1748142839826,0.37234173,2507.7,2507.2,0.802]
[1748142840554,0.37234173,2507.6,2507.2,0.802]
[1748142841720,0.37234173,2507.5,2507.3,11.935]
[1748142842046,0.37234173,2507.5,2507.2,0.802]
[1748142842253,0.37234173,2507.5,2507.3,11.935]
[1748142842454,1.67524173,2507.5,2507.4,11.935]
[1748142842653,1.3029,2507.5,2507.4,11.935]
[1748142842950,0.7529,2507.5,2507.4,11.935]
[1748142843156,0.55,2507.7,2507.4,11.935]
[1748142843719,0.37251053,2507.6,2507.4,11.935]
[1748142844495,1.369,2507.5,2506.7,0.8133]
[1748142844692,0.37251053,2507.6,2507.5,11.935]
[1748142844837,10.53851724,2507.6,2507.5,11.935]
[1748142845157,11.59236896,2507.6,2507.5,11.935]
[1748142847241,10.53851724,2507.6,2507.5,11.935]
[1748142847440,10.53851724,2507.6,2507.5,51.174]
[1748142849183,10.53851724,2507.6,2507.5,27.304]
[1748142849678,10.53851724,2507.6,2507.5,11.935]
[1748142852587,10.53851724,2507.6,2507.5,12.715]
[1748142852950,0.37251053,2507.6,2507.5,12.715]
[1748142853149,10.16600671,2508.1,2507.5,12.715]
[1748142853460,10.16600671,2508.1,2507.6,0.78]
[1748142857500,10.16600671,2508.1,2507.8,0.777]
[1748142858176,2.0021194,2508.3,2507.8,0.777]
[1748142858579,8.0,2508.4,2507.8,0.777]
[1748142860281,8.7533,2508.4,2507.9,11.933]
[1748142860798,8.0,2508.4,2507.9,11.933]
[1748142861529,0.7533,2508.2,2507.6,0.8073]
[1748142861730,8.0,2508.0,2506.9,0.8073]
[1748142862039,8.0,2508.0,2506.8,0.47477265]
[1748142862040,8.0,2508.0,2507.7,11.933]
[1748142862320,9.89193067,2508.0,2507.7,11.933]
[1748142862829,8.7533,2507.8,2507.2,0.8073]
[1748142863117,18.91930671,2507.8,2507.3,11.933]
[1748142865194,18.16600671,2507.8,2507.3,11.933]
[1748142865886,10.16600671,2507.8,2507.4,0.7863]
[1748142867013,10.16600671,2508.5,2507.4,0.7863]
[1748142867217,8.0,2508.4,2507.4,0.7863]
[1748142867619,8.0,2508.4,2507.6,0.7863]
[1748142869237,10.16600671,2508.5,2507.6,0.7863]
[1748142869539,10.16600671,2508.5,2507.8,0.5]
[1748142869708,10.16600671,2508.5,2507.9,0.8168]
[1748142870395,2.0021194,2508.7,2507.9,0.8168]
[1748142870599,2.28301607,2508.7,2507.9,0.8168]
[1748142871025,0.02024732,2508.9,2507.9,0.8168]
[1748142874234,0.07007393,2508.9,2508.1,8.0]
[1748142874437,0.02024732,2508.9,2508.1,8.5]
[1748142875237,0.02024732,2508.9,2508.2,0.8304]
[1748142877338,0.7585,2508.8,2508.1,0.5]
[1748142877545,0.7585,2508.8,2508.2,27.27]
[1748142877745,0.27770281,2508.7,2508.2,11.931]
[1748142878045,0.64870191,2508.7,2508.2,11.931]
[1748142880948,0.27770281,2508.7,2508.2,11.931]
[1748142881122,0.7585,2508.8,2508.2,11.931]
[1748142881822,10.16600671,2508.7,2508.2,11.931]
[1748142886673,0.7955,2508.6,2508.2,11.931]
[1748142887476,0.7955,2508.6,2508.3,39.2]
[1748142889975,0.7955,2508.6,2508.2,11.931]
[1748142890279,0.7955,2508.8,2508.2,11.931]
[1748142893993,0.7955,2508.8,2508.1,0.5]
[1748142894189,0.7955,2508.8,2508.3,11.93]
[1748142894668,0.7955,2508.8,2508.4,11.93]
[1748142894985,0.37184654,2508.7,2508.4,11.93]
[1748142895870,0.37184654,2508.6,2508.4,11.93]
[1748142897104,0.7955,2508.8,2508.4,11.93]
[1748142897508,0.7955,2508.8,2508.5,15.338]
[1748142897672,0.7955,2508.8,2508.6,27.268]
[1748142897873,0.7955,2508.8,2508.6,11.93]
[1748142898182,0.37229079,2508.7,2508.6,11.93]
[1748142902170,0.02024732,2508.9,2508.6,11.93]
[1748142904707,0.7923,2508.8,2508.1,1.2891]
[1748142904886,0.7923,2508.8,2508.2,11.929]
[1748142905306,0.37222857,2508.7,2508.2,11.929]
[1748142905697,0.7923,2508.6,2508.1,0.5]
[1748142905878,0.7923,2508.6,2508.3,11.929]
[1748142906072,0.7923,2508.6,2508.1,0.5]
[1748142906407,0.37222857,2508.5,2508.2,11.929]
[1748142907408,0.7923,2508.6,2508.2,11.929]
[1748142907616,0.7923,2508.6,2508.3,39.197]
[1748142908610,0.7923,2508.6,2508.3,15.338]
[1748142909203,0.3722179,2508.5,2508.3,15.338]
[1748142909811,0.3722179,2508.5,2508.2,11.929]
[1748142909988,0.7923,2508.6,2508.2,11.929]
[1748142911516,1.88813067,2508.6,2508.2,11.929]
[1748142911913,0.37220014,2508.5,2508.2,11.929]
[1748142912812,1.88813067,2508.6,2508.2,11.929]
[1748142914984,0.37219288,2508.5,2508.2,11.929]
[1748142916023,1.88813067,2508.6,2508.2,11.929]
[1748142917517,1.88813067,2508.6,2508.3,39.175]
[1748142917822,1.88813067,2508.6,2508.3,15.314]
[1748142918010,0.37219523,2508.5,2508.3,15.314]
[1748142918209,0.37219523,2508.5,2508.2,11.929]
[1748142919319,1.88813067,2508.6,2508.2,11.929]
[1748142921029,0.37219092,2508.5,2508.2,11.929]
[1748142921928,1.88813067,2508.6,2508.2,11.929]
[1748142922425,1.88813067,2508.6,2508.1,0.5]
[1748142922625,12.05413738,2508.6,2508.2,11.93]
[1748142922830,1.2103971,2508.5,2508.2,11.93]
[1748142923993,1.2103971,2508.5,2508.1,0.5]
[1748142924188,0.805,2508.4,2508.2,11.93]
[1748142924619,0.805,2508.4,2508.1,0.5]
[1748142924620,0.84073808,2508.3,2508.1,0.5]
[1748142924799,11.26668119,2508.2,2508.1,0.5]
[1748142925000,11.6389783,2508.2,2508.1,12.43]
[1748142925199,12.1889783,2508.2,2508.1,0.5]
[1748142925428,12.1889783,2508.2,2508.1,12.43]
[1748142925429,12.9798783,2508.2,2508.1,12.43]
[1748142927638,12.9798783,2508.2,2508.1,51.606]
[1748142928046,12.9798783,2508.2,2508.1,51.607]
[1748142929867,12.9798783,2508.2,2508.1,12.431]
[1748142930461,10.53830382,2508.2,2508.1,12.431]
[1748142930690,10.16600671,2508.2,2508.1,12.431]
[1748142930866,2.00387567,2508.7,2508.1,12.431]
[1748142931023,2.00387567,2508.7,2508.2,0.7758]
[1748142931224,2.00387567,2508.7,2508.2,8.7758]
[1748142931624,2.00387567,2508.7,2508.3,0.7758]
[1748142932567,2.00387567,2508.8,2508.3,0.7758]
[1748142934909,2.00387567,2508.8,2508.5,0.8291]
[1748142935199,1e-08,2508.9,2508.7,0.8291]
[1748142935759,1e-08,2508.9,2508.8,0.8291]
[1748142936516,2.00719974,2509.8,2508.8,0.8291]
[1748142936956,1.96776451,2509.8,2508.8,0.8291]
[1748142937570,1.96776451,2509.8,2509.0,0.8291]
[1748142937771,1.96776451,2509.8,2508.9,39.169]
[1748142937772,1.96776451,2509.8,2509.1,11.928]
[1748142937972,1.96776451,2509.8,2509.2,0.8291]
[1748142938176,1.96776451,2509.8,2509.3,0.8291]
[1748142939093,1.96776451,2509.8,2509.5,0.5]
[1748142940103,0.05,2509.9,2509.5,0.5]
[1748142941484,0.05,2509.9,2509.6,11.927]
[1748142945273,0.05,2509.9,2509.7,11.926]
[1748142945484,0.8296,2509.9,2509.7,11.926]
[1748142945927,0.8296,2509.9,2509.8,11.926]
[1748142946802,0.8296,2509.9,2509.8,11.925]
[1748142947741,0.8296,2509.9,2509.8,51.061]
[1748142948991,0.8296,2509.9,2509.5,0.5]
[1748142949512,10.38881198,2509.8,2509.6,11.925]
[1748142953927,10.16600671,2509.8,2509.6,11.925]
[1748142957504,10.16600671,2509.8,2509.7,39.134]
[1748142957819,10.16600671,2509.8,2509.6,11.925]
[1748142958528,10.16600671,2509.8,2509.7,0.8021]
[1748142959934,10.15800671,2509.8,2509.7,0.8021]
[1748142961437,0.05,2509.9,2509.7,0.8021]
[1748142961733,0.05,2509.9,2509.6,11.925]
[1748142962032,0.05,2509.9,2509.5,1.3242]
[1748142962235,0.05,2509.9,2509.6,11.924]
[1748142962561,0.05,2509.9,2509.7,0.8242]
[1748142963205,0.05,2509.9,2509.6,11.924]
[1748142964725,0.05,2509.9,2509.5,0.5]
[1748142965035,0.37214501,2509.8,2509.7,11.924]
[1748142965464,0.05,2509.9,2509.5,0.5]
[1748142965671,2.7192527,2509.6,2509.5,0.5]
[1748142965802,3.13321216,2509.6,2509.5,12.424]
[1748142966205,3.45554209,2509.6,2509.5,12.424]
[1748142966415,13.6135488,2509.6,2509.5,12.424]
[1748142966822,16.0005488,2509.6,2509.5,12.424]
[1748142967448,16.0005488,2509.6,2509.5,19.102]
[1748142967746,16.0005488,2509.6,2509.5,51.56]
[1748142968241,16.0005488,2509.6,2509.5,27.709]
[1748142969646,16.0005488,2509.6,2509.5,0.5]
[1748142969844,16.0005488,2509.6,2509.5,12.425]
[1748142970541,16.0005488,2509.6,2509.5,0.5]
[1748142970741,24.0005488,2509.6,2509.5,0.5]
[1748142970949,24.0005488,2509.6,2509.5,12.426]
[1748142972440,0.7747,2509.3,2508.4,0.8143]
[1748142972747,0.55,2509.1,2508.5,11.926]
[1748142972920,1.64827067,2509.1,2508.5,11.926]
[1748142973434,0.55,2509.1,2508.5,11.926]
[1748142975044,9.65800671,2509.2,2508.5,11.926]
[1748142976819,8.0,2509.1,2508.5,11.926]
[1748142977019,9.65800671,2509.2,2508.5,11.926]
[1748142977546,0.55,2509.1,2508.6,39.123]
[1748142977748,1.64827067,2509.1,2508.6,15.268]
[1748142977930,2.01928241,2509.1,2508.7,11.928]
[1748142978254,0.92101174,2509.1,2508.7,11.928]
[1748142978951,0.92101174,2509.1,2508.4,0.8143]
[1748142979252,0.92101174,2509.1,2508.8,11.928]
[1748142979832,0.55,2509.1,2508.8,11.928]
[1748142980349,0.59982571,2509.1,2508.8,11.928]
[1748142980554,1.3061,2508.9,2508.4,0.8143]
[1748142980964,1.35593104,2508.9,2508.5,11.928]
[1748142981349,1.72686035,2508.9,2508.5,11.928]
[1748142981727,1.67702931,2508.9,2508.5,11.928]
[1748142981927,9.65800671,2508.8,2508.5,11.928]
[1748142987471,9.65800671,2508.8,2508.6,39.127]
[1748142988270,9.65800671,2508.8,2508.5,11.928]
[1748142992168,0.55,2508.4,2507.3,0.8189]
[1748142992474,10.937,2508.0,2507.4,11.929]
[1748142992661,0.55,2508.0,2507.4,11.929]
[1748142993055,0.55,2508.1,2507.4,11.929]
[1748142993472,0.37152339,2508.0,2507.4,11.929]
[1748142994041,0.37152339,2508.0,2507.3,0.8189]
[1748142994246,0.37152339,2508.0,2507.4,11.929]
[1748142994748,0.55,2508.1,2507.3,0.8189]
[1748142995052,9.3658,2507.7,2507.4,11.931]
[1748142996063,1.3658,2507.7,2507.4,11.931]
[1748142997005,1.73669733,2507.7,2507.4,11.931]
[1748142997197,1.73669733,2507.7,2507.1,0.05]
[1748142997198,0.7881,2507.6,2507.1,0.05]
[1748142997481,1.098845,2507.6,2507.2,27.204]
[1748142997873,1.098845,2507.6,2507.2,11.931]
[1748142998386,0.55,2507.5,2507.1,0.05]
[1748142998601,1.3381,2507.2,2507.1,0.05]
[1748142998753,4.0359943,2507.2,2507.1,11.982]
[1748142999181,12.0359943,2507.2,2507.1,11.982]
[1748143001508,12.04500671,2507.4,2507.1,11.982]
[1748143001509,9.65800671,2507.4,2507.1,11.982]
[1748143007589,9.65800671,2507.4,2507.2,39.133]
[1748143008175,9.65800671,2507.4,2507.2,15.262]
[1748143008382,10.20800671,2507.4,2507.3,11.935]
[1748143010401,9.65800671,2507.4,2507.3,11.936]
[1748143016176,9.65800671,2507.4,2507.3,12.7541]
[1748143017280,9.65800671,2508.0,2507.3,12.7541]
[1748143017481,9.65800671,2508.0,2507.4,39.133]
[1748143017712,9.65800671,2508.0,2507.3,0.8181]
[1748143017879,9.65800671,2508.0,2507.4,11.935]
[1748143018798,9.65800671,2508.0,2507.5,0.8181]
[1748143021223,9.65800671,2508.0,2507.6,0.7705]
[1748143025823,9.65800671,2508.7,2507.6,0.7705]
[1748143027626,9.65800671,2508.7,2507.8,0.7686]
[1748143027828,9.65800671,2508.7,2507.9,0.7686]
[1748143027985,9.65800671,2508.7,2508.0,0.7686]
[1748143028812,9.65800671,2509.2,2508.0,0.7686]
[1748143030277,0.7564,2509.7,2508.1,0.55]
[1748143030564,9.65800671,2509.8,2508.1,0.55]
[1748143030715,9.65800671,2509.8,2508.2,0.7736]
[1748143030909,9.65800671,2509.8,2508.2,0.96669755]
[1748143031326,9.65800671,2509.8,2508.3,0.37440342]
[1748143031526,9.65800671,2509.8,2508.6,0.7736]
[1748143031755,0.05,2509.9,2508.8,8.7736]
[1748143031952,0.05,2509.9,2509.0,0.7736]
[1748143034453,0.05,2509.9,2509.1,11.929]